fUSD/lending_fUSD_20260702
["ID","MTS","AMOUNT","RATE_DAILY","PERIOD"]
[426908219,1783002666000,-280.00361254,0.0003384,2]
[426908213,1783002666000,-2000.0,0.000338,15]
[426908215,1783002666000,-463.92274305,0.00033806,2]
[426908222,1783002666000,-1378.77,0.00028027,2]
[426908211,1783002666000,-1345.19,0.000338,20]
[426908201,1783002666000,-151.0,0.00033778,7]
[426908205,1783002666000,-1591.4,0.0003379,30]
[426908210,1783002666000,-1345.19,0.000338,20]
[426908182,1783002666000,-151.0,0.00033778,7]
[426908185,1783002666000,-151.0,0.00033778,7]
[426908184,1783002666000,-151.0,0.00033778,7]
[426908203,1783002666000,-152.24757,0.00033778,7]
[426908199,1783002666000,-158.011676,0.00033778,7]
[426908188,1783002666000,-201.288471,0.00033778,7]
[426908189,1783002666000,-201.288471,0.00033778,7]
[426908195,1783002666000,-151.0,0.00033778,7]
[426908200,1783002666000,-151.0,0.00033778,7]
[426908191,1783002666000,-393.0876,0.00033778,7]
[426908190,1783002666000,-201.288471,0.00033778,7]
[426908194,1783002666000,-393.0876,0.00033778,7]
[426908192,1783002666000,-393.0876,0.00033778,7]
[426908197,1783002666000,-201.422176,0.00033778,7]
[426908193,1783002666000,-151.0,0.00033778,7]
[426908198,1783002666000,-151.0,0.00033778,7]
[426908202,1783002666000,-151.0,0.00033778,7]
[426908196,1783002666000,-393.0876,0.00033778,7]
[426908226,1783002729000,3000.0,0.000287,120]
[426908227,1783002729000,3000.0,0.000287,120]
[426908228,1783002729000,3000.0,0.000287,120]
[426908229,1783002729000,3000.0,0.000287,120]
[426908233,1783002729000,3000.0,0.000287,120]
[426908231,1783002729000,3000.0,0.000287,120]
[426908232,1783002729000,3000.0,0.000287,120]
[426908234,1783002729000,3000.0,0.000287,120]
[426908230,1783002729000,3000.0,0.000287,120]
[426908235,1783002730000,3000.0,0.000287,120]
[426908237,1783002730000,3000.0,0.000287,120]
[426908236,1783002730000,3000.0,0.000287,120]
[426908240,1783002757000,1743.85577388,0.000287,120]
[426908239,1783002757000,3000.0,0.000287,120]
[426908242,1783002766000,183430.0049,0.00023016,120]
[426908243,1783002786000,1000.0,0.00027556,120]
[426908247,1783002845000,-200.0,0.00023656,2]
[426908246,1783002845000,-500.0,0.00023656,2]
[426908249,1783002915000,1277.6,0.0003013,120]
[426908250,1783002921000,172.26,0.00026457,120]
[426908252,1783003117000,770.59271173,0.0002721,120]
[426908253,1783003145000,189.17,0.00028837,120]
[426908256,1783003428000,67.04388469,0.0001746,2]
[426908255,1783003428000,82.95611531,0.0001746,2]
[426908259,1783003484000,153.0,0.00015,2]
[426908258,1783003484000,181.3,0.00015,2]
[426908257,1783003484000,85.95611531,0.00015,2]
[426908260,1783003485000,302.6,0.00015,2]
[426908261,1783003485000,536.58458871,0.00015,2]
[426908263,1783003485000,532.05311223,0.00015,2]
[426908264,1783003485000,316.72351534,0.000114,2]
[426908262,1783003485000,220.26572649,0.00015,2]
[426908265,1783003492000,1721.6889,0.00027,120]
[426908266,1783003541000,2188.78826258,8e-05,2]
[426908268,1783003545000,-415.01618863,0.000142,2]
[426908267,1783003545000,-687.50341668,0.000142,2]
[426908271,1783003546000,-3590.09253569,0.00015,2]
[426908270,1783003546000,-157.387859,0.00014999,2]
[426908269,1783003546000,-150.0,0.00014999,2]
[426908274,1783003547000,-5000.0,0.00015,2]
[426908273,1783003547000,-5000.0,0.00015,2]
[426908272,1783003547000,-5000.0,0.00015,2]
[426908275,1783003548000,-5000.0,0.00015,2]
[426908276,1783003548000,-5000.0,0.00015,2]
[426908277,1783003548000,-5000.0,0.00015,2]
[426908280,1783003549000,-5000.0,0.00015,2]
[426908279,1783003549000,-5000.0,0.00015,2]
[426908278,1783003549000,-5000.0,0.00015,2]
[426908283,1783003550000,-5000.0,0.00015,2]
[426908282,1783003550000,-5000.0,0.00015,2]
[426908281,1783003550000,-5000.0,0.00015,2]
[426908286,1783003551000,-5000.0,0.00015,2]
[426908285,1783003551000,-5000.0,0.00015,2]
[426908284,1783003551000,-5000.0,0.00015,2]
[426908289,1783003552000,-5000.0,0.00015,2]
[426908288,1783003552000,-5000.0,0.00015,2]
[426908287,1783003552000,-5000.0,0.00015,2]
[426908290,1783003553000,-5000.0,0.00015,2]
[426908292,1783003553000,-5000.0,0.00015,2]
[426908291,1783003553000,-5000.0,0.00015,2]
[426908294,1783003554000,-5000.0,0.00015,2]
[426908293,1783003554000,-5000.0,0.00015,2]
[426908297,1783003555000,-5000.0,0.00015,2]
[426908296,1783003555000,-5000.0,0.00015,2]
[426908295,1783003555000,-5000.0,0.00015,2]
[426908300,1783003556000,-5000.0,0.00015,2]
[426908299,1783003556000,-5000.0,0.00015,2]
[426908298,1783003556000,-5000.0,0.00015,2]
[426908301,1783003557000,-5000.0,0.00015,2]
[426908303,1783003557000,-5000.0,0.00015,2]
[426908302,1783003557000,-5000.0,0.00015,2]
[426908306,1783003558000,-5000.0,0.00015,2]
[426908305,1783003558000,-5000.0,0.00015,2]
[426908304,1783003558000,-5000.0,0.00015,2]
[426908308,1783003559000,-5000.0,0.00015,2]
[426908307,1783003559000,-5000.0,0.00015,2]
[426908311,1783003560000,-5000.0,0.00015,2]
[426908310,1783003560000,-5000.0,0.00015,2]
[426908309,1783003560000,-5000.0,0.00015,2]
[426908314,1783003561000,-5000.0,0.00015,2]
[426908313,1783003561000,-5000.0,0.00015,2]
[426908312,1783003561000,-5000.0,0.00015,2]
[426908317,1783003562000,-5000.0,0.00015,2]
[426908316,1783003562000,-5000.0,0.00015,2]
[426908315,1783003562000,-5000.0,0.00015,2]
[426908318,1783003563000,-4703.76167854,0.00015,2]
[426908324,1783003717000,3988.45189977,0.0001,2]
[426908353,1783003758000,-236.50408916,0.00014999,2]
[426908333,1783003758000,-150.0,0.00014549,2]
[426908334,1783003758000,-300.0,0.000147,5]
[426908336,1783003758000,-700.0,0.000148,5]
[426908337,1783003758000,-1100.0,0.000149,5]
[426908338,1783003758000,-511.21232853,0.000149,2]
[426908339,1783003758000,-182.60383973,0.00014924,2]
[426908340,1783003758000,-167.21602736,0.00014925,2]
[426908341,1783003758000,-15.38781237,0.00014925,2]
[426908335,1783003758000,-181.16706827,0.000148,2]
[426908342,1783003758000,-151.0,0.00014997,2]
[426908345,1783003758000,-1035.08042858,0.00014999,2]
[426908344,1783003758000,-739.23483311,0.00014999,2]
[426908346,1783003758000,-150.0,0.00014999,2]
[426908348,1783003758000,-367.5589876,0.00014999,2]
[426908349,1783003758000,-182.93720223,0.00014999,2]
[426908347,1783003758000,-500.0,0.00014999,2]
[426908351,1783003758000,-312.29958719,0.00014999,2]
[426908350,1783003758000,-299.70494736,0.00014999,2]
[426908352,1783003758000,-198.24025583,0.00014999,2]
[426908343,1783003758000,-151.0,0.00014997,2]
[426908354,1783003759000,214.848272,0.00025284,120]
[426908356,1783003783000,-1567.49453891,0.000149,2]
[426908358,1783003783000,-315.22651447,0.00014999,2]
[426908357,1783003783000,-500.0,0.00014999,2]
[426908361,1783003783000,-97.39444486,0.00014999,2]
[426908360,1783003783000,-464.7067138,0.00014999,2]
[426908362,1783003783000,-402.60555514,0.00014999,2]
[426908359,1783003783000,-500.0,0.00014999,2]
[426908371,1783003784000,-28.61053747,0.00014999,2]
[426908369,1783003784000,-42.2166569,0.00014999,2]
[426908370,1783003784000,-482.62308982,0.00014999,2]
[426908368,1783003784000,-500.0,0.00014999,2]
[426908366,1783003784000,-500.0,0.00014999,2]
[426908365,1783003784000,-500.0,0.00014999,2]
[426908367,1783003784000,-500.0,0.00014999,2]
[426908363,1783003784000,-500.0,0.00014999,2]
[426908364,1783003784000,-500.0,0.00014999,2]
[426908373,1783003802000,219.353884,0.00025284,120]
[426908382,1783003808000,-366.51319967,0.00014999,2]
[426908384,1783003808000,-500.0,0.00014999,2]
[426908375,1783003808000,-264.68046473,0.000142,2]
[426908376,1783003808000,-503.80190063,0.000149,2]
[426908377,1783003808000,-1326.34605749,0.000149,2]
[426908374,1783003808000,-214.52454989,0.00014199,2]
[426908380,1783003808000,-500.0,0.00014999,2]
[426908378,1783003808000,-150.0,0.00014999,2]
[426908381,1783003808000,-133.48680033,0.00014999,2]
[426908383,1783003808000,-500.0,0.00014999,2]
[426908379,1783003808000,-500.0,0.00014999,2]
[426908389,1783003809000,-226.3265734,0.00014999,2]
[426908390,1783003809000,-247.72596312,0.00014999,2]
[426908388,1783003809000,-500.0,0.00014999,2]
[426908386,1783003809000,-500.0,0.00014999,2]
[426908387,1783003809000,-500.0,0.00014999,2]
[426908385,1783003809000,-500.0,0.00014999,2]
[426908408,1783003832000,-201.9560106,0.0001499,2]
[426908407,1783003832000,-853.363352,0.000149,2]
[426908410,1783003832000,-250.0,0.00015,2]
[426908406,1783003832000,-343.14613815,0.000149,2]
[426908411,1783003832000,-498.95687992,0.00015,2]
[426908412,1783003832000,-831.01538534,0.00015,2]
[426908413,1783003832000,-199210.36432062,0.00015,2]
[426908409,1783003832000,-607.15788902,0.00015,2]
[426908462,1783003838000,-291.0,0.00016091,2]
[426908461,1783003838000,-1108.15260128,0.00016024,2]
[426908453,1783003838000,-291.0,0.00015197,2]
[426908451,1783003838000,-150.09,0.00015,2]
[426908450,1783003838000,-150.0,0.00015,2]
[426908447,1783003838000,-4933.7044631,0.00015,2]
[426908449,1783003838000,-280.69973776,0.00015,2]
[426908448,1783003838000,-536.58,0.00015,2]
[426908445,1783003838000,-2500.0,0.00015,2]
[426908446,1783003838000,-448315.935353,0.00015,2]
[426908444,1783003838000,-1972215.60419796,0.00015,2]
[426908441,1783003838000,-404.3482089,0.00015,2]
[426908442,1783003838000,-426.4607146,0.00015,2]
[426908440,1783003838000,-2540.7993691,0.00015,2]
[426908439,1783003838000,-484.19611743,0.00015,2]
[426908435,1783003838000,-9964.11954111,0.00015,2]
[426908437,1783003838000,-25400.6863752,0.00015,2]
[426908433,1783003838000,-23539.23803989,0.000149,2]
[426908418,1783003838000,-520.62527295,0.000149,2]
[426908452,1783003838000,-291.0,0.00015048,2]
[426908443,1783003838000,-1044.93223085,0.00015,2]
[426908458,1783003838000,-291.0,0.00015793,2]
[426908438,1783003838000,-1351.90172374,0.00015,2]
[426908456,1783003838000,-291.0,0.00015644,2]
[426908460,1783003838000,-291.0,0.00015942,2]
[426908476,1783003838000,-151.0,0.00018,2]
[426908475,1783003838000,-500.0,0.000179,2]
[426908479,1783003838000,-503.80190059,0.00018217,2]
[426908478,1783003838000,-536.58,0.00018,2]
[426908477,1783003838000,-151.0,0.00018,2]
[426908473,1783003838000,-433.0,0.00017339,2]
[426908472,1783003838000,-1567.49453884,0.00017057,2]
[426908470,1783003838000,-150.0,0.00016936,2]
[426908467,1783003838000,-300.0,0.00016499,2]
[426908474,1783003838000,-3679.23331707,0.0001736,2]
[426908466,1783003838000,-294.0,0.00016389,2]
[426908471,1783003838000,-150.09,0.00017,2]
[426908468,1783003838000,-600.0,0.00016499,2]
[426908464,1783003838000,-255.0,0.00016124,2]
[426908465,1783003838000,-291.0,0.0001624,2]
[426908463,1783003838000,-150.0,0.00016092,2]
[426908459,1783003838000,-350.63686235,0.00015892,2]
[426908457,1783003838000,-275.02197042,0.00015792,2]
[426908455,1783003838000,-291.0,0.00015495,2]
[426908469,1783003838000,-250.0,0.00016499,2]
[426908454,1783003838000,-291.0,0.00015346,2]
[426908523,1783003839000,-4999.99,0.00022562,2]
[426908520,1783003839000,-721.29,0.00022562,2]
[426908524,1783003839000,-500.0,0.00022605,2]
[426908518,1783003839000,-31587.91,0.00022562,2]
[426908515,1783003839000,-9552.31,0.00022562,5]
[426908519,1783003839000,-5177.51,0.00022562,2]
[426908517,1783003839000,-299.99,0.00022562,7]
[426908516,1783003839000,-2495.78,0.00022562,2]
[426908525,1783003839000,-500.0,0.00022822,2]
[426908509,1783003839000,-686.39,0.00022,2]
[426908521,1783003839000,-28822.72,0.00022562,2]
[426908522,1783003839000,-8611.21,0.00022562,2]
[426908536,1783003839000,-160.0,0.00023828,2]
[426908537,1783003839000,-1326.34605749,0.00023831,2]
[426908533,1783003839000,-2906.63892173,0.00023667,2]
[426908534,1783003839000,-2897.60266897,0.00023762,2]
[426908526,1783003839000,-748.88295367,0.00023,2]
[426908528,1783003839000,-150.0,0.00023056,2]
[426908531,1783003839000,-3025.25,0.00023349,2]
[426908529,1783003839000,-2053.65667695,0.00023167,2]
[426908530,1783003839000,-2906.63892173,0.00023333,2]
[426908532,1783003839000,-1567.49453884,0.00023529,2]
[426908507,1783003839000,-600.0,0.00021918,2]
[426908535,1783003839000,-150.09,0.000238,7]
[426908538,1783003839000,-193.10252743,0.000239,30]
[426908540,1783003839000,-155.0,0.00024,2]
[426908527,1783003839000,-2906.63892173,0.00023,2]
[426908505,1783003839000,-503.80190059,0.00021533,2]
[426908498,1783003839000,-150.09,0.000202,2]
[426908508,1783003839000,-600.0,0.00021918,2]
[426908543,1783003839000,-2906.63892173,0.00024,2]
[426908487,1783003839000,-303.51470744,0.000191,2]
[426908483,1783003839000,-200.0,0.00018832,7]
[426908484,1783003839000,-200.0,0.00018832,7]
[426908486,1783003839000,-755.77743304,0.00019,2]
[426908481,1783003839000,-200.0,0.00018832,2]
[426908482,1783003839000,-200.0,0.00018832,2]
[426908480,1783003839000,-354.0,0.00018629,2]
[426908485,1783003839000,-200.0,0.00018832,2]
[426908489,1783003839000,-150.0,0.00019237,2]
[426908488,1783003839000,-1567.49453884,0.00019214,2]
[426908493,1783003839000,-1000.0,0.0002,90]
[426908491,1783003839000,-5030.23750186,0.000199,3]
[426908492,1783003839000,-199.5,0.00019999,2]
[426908490,1783003839000,-500.0,0.00019801,2]
[426908499,1783003839000,-1719.07923613,0.00021,2]
[426908500,1783003839000,-172.55,0.00021141,2]
[426908495,1783003839000,-6282.0,0.0002,2]
[426908497,1783003839000,-3769.18,0.00020175,2]
[426908494,1783003839000,-1200.0,0.0002,2]
[426908502,1783003839000,-1567.49453884,0.00021371,2]
[426908512,1783003839000,-9999.99,0.00022562,2]
[426908501,1783003839000,-662.16,0.0002128,2]
[426908513,1783003839000,-809.92,0.00022562,2]
[426908514,1783003839000,-887.95,0.00022562,2]
[426908503,1783003839000,-2500.0,0.000215,2]
[426908510,1783003839000,-276.32,0.00022466,2]
[426908511,1783003839000,-9999.99,0.00022562,2]
[426908539,1783003839000,-174.0,0.00024,2]
[426908549,1783003839000,-129423.38,0.00024227,2]
[426908544,1783003839000,-156.0,0.00024,2]
[426908585,1783003839000,-156.0,0.00025,2]
[426908576,1783003839000,-155.77,0.00025,2]
[426908586,1783003839000,-166.1,0.00025067,2]
[426908578,1783003839000,-352.83336025,0.00025,3]
[426908579,1783003839000,-163.0,0.00025,2]
[426908577,1783003839000,-191.50548913,0.00025,7]
[426908580,1783003839000,-220.0,0.00025,2]
[426908587,1783003839000,-206.0,0.00025073,2]
[426908582,1783003839000,-19436.78,0.00025,2]
[426908583,1783003839000,-12957.52,0.00025,2]
[426908584,1783003839000,-2906.63892173,0.00025,2]
[426908593,1783003839000,-190.95,0.00025299,2]
[426908590,1783003839000,-187.13,0.00025215,2]
[426908597,1783003839000,-500.0,0.00025409,2]
[426908600,1783003839000,-2906.63892173,0.00025667,2]
[426908596,1783003839000,-150.09,0.000254,7]
[426908588,1783003839000,-7021.97,0.00025174,2]
[426908598,1783003839000,-189.17,0.00025633,2]
[426908595,1783003839000,-479.3,0.0002539,2]
[426908592,1783003839000,-795.60723986,0.00025274,2]
[426908589,1783003839000,-823.42,0.00025215,2]
[426908594,1783003839000,-2906.63892173,0.00025333,2]
[426908599,1783003839000,-220.83058827,0.00025633,30]
[426908602,1783003839000,-1000.0,0.00025685,2]
[426908601,1783003839000,-1136.45,0.0002568,2]
[426908547,1783003839000,-420.99,0.00024174,2]
[426908603,1783003839000,-1567.49453884,0.00025686,2]
[426908574,1783003839000,-547.71,0.00025,2]
[426908573,1783003839000,-155.77,0.00025,2]
[426908581,1783003839000,-45353.82,0.00025,2]
[426908572,1783003839000,-234.16,0.00025,2]
[426908545,1783003839000,-740.68,0.00024167,2]
[426908575,1783003839000,-234.16,0.00025,2]
[426908542,1783003839000,-150.0,0.00024,2]
[426908548,1783003839000,-6524.79,0.00024174,2]
[426908546,1783003839000,-725.1,0.00024174,2]
[426908551,1783003839000,-275.02197041,0.00024323,2]
[426908561,1783003839000,-307.26,0.00024823,4]
[426908550,1783003839000,-200.0,0.00024263,2]
[426908562,1783003839000,-200.0,0.00024837,2]
[426908552,1783003839000,-2906.63892173,0.00024333,2]
[426908555,1783003839000,-500.0,0.00024658,2]
[426908553,1783003839000,-1000.0,0.00024419,2]
[426908554,1783003839000,-664.66,0.00024523,7]
[426908556,1783003839000,-501.451067,0.00024658,2]
[426908541,1783003839000,-220.0,0.00024,2]
[426908560,1783003839000,-5000.0,0.00024752,2]
[426908557,1783003839000,-156.57,0.00024658,2]
[426908568,1783003839000,-152.01526153,0.00024967,2]
[426908565,1783003839000,-181.82661821,0.00024905,2]
[426908566,1783003839000,-152.05026603,0.00024905,2]
[426908570,1783003839000,-174.0,0.00025,2]
[426908567,1783003839000,-500.0,0.00024956,3]
[426908569,1783003839000,-249.0,0.00024999,2]
[426908563,1783003839000,-503.80190059,0.0002485,2]
[426908564,1783003839000,-192.60553559,0.00024905,2]
[426908559,1783003839000,-150.0,0.00024752,2]
[426908558,1783003839000,-2906.63892173,0.00024667,2]
[426908571,1783003839000,-547.71,0.00025,2]
[426908650,1783003840000,-151.0,0.000268,2]
[426908649,1783003840000,-151.0,0.000268,2]
[426908637,1783003840000,-823.42,0.00026476,2]
[426908646,1783003840000,-8014.6026,0.000268,30]
[426908648,1783003840000,-151.0,0.000268,2]
[426908647,1783003840000,-4047103.82280135,0.000268,2]
[426908641,1783003840000,-6251.2862,0.00026678,2]
[426908639,1783003840000,-375.0,0.00026521,2]
[426908644,1783003840000,-151.0,0.00026797,7]
[426908638,1783003840000,-386.20505485,0.000265,30]
[426908643,1783003840000,-2138.37,0.00026788,2]
[426908645,1783003840000,-87716.54736711,0.000268,2]
[426908653,1783003840000,-151.0,0.000268,2]
[426908662,1783003840000,-153.37221337,0.00026994,2]
[426908651,1783003840000,-151.0,0.000268,2]
[426908660,1783003840000,-472.87155653,0.00026994,2]
[426908659,1783003840000,-333.49029433,0.00026994,2]
[426908657,1783003840000,-231.65790531,0.00026994,2]
[426908655,1783003840000,-1900.0,0.000268,9]
[426908658,1783003840000,-577.81660676,0.00026994,2]
[426908654,1783003840000,-151.0,0.000268,2]
[426908661,1783003840000,-208.27691093,0.00026994,2]
[426908656,1783003840000,-300.0,0.000269,9]
[426908668,1783003840000,-174.39670117,0.00026994,2]
[426908669,1783003840000,-205.6550258,0.00026994,2]
[426908627,1783003840000,-166.74514717,0.00026158,2]
[426908652,1783003840000,-151.0,0.000268,2]
[426908629,1783003840000,-363.65323641,0.00026158,2]
[426908605,1783003840000,-500.0,0.00025747,2]
[426908628,1783003840000,-236.43577827,0.00026158,2]
[426908664,1783003840000,-190.74835733,0.00026994,2]
[426908606,1783003840000,-151.0,0.00025797,7]
[426908604,1783003840000,-398.05120643,0.0002571,2]
[426908611,1783003840000,-295.24320513,0.00025875,2]
[426908607,1783003840000,-1095622.96916663,0.000258,2]
[426908608,1783003840000,-202.03,0.000258,2]
[426908610,1783003840000,-823.42,0.00025845,2]
[426908609,1783003840000,-788.3,0.000258,2]
[426908621,1783003840000,-221.04398295,0.00026,2]
[426908612,1783003840000,-500.0,0.00025875,2]
[426908613,1783003840000,-500.0,0.00025875,2]
[426908620,1783003840000,-64564.66184706,0.00026,10]
[426908616,1783003840000,-613.71456904,0.0002599,2]
[426908623,1783003840000,-2906.63892173,0.00026,2]
[426908614,1783003840000,-500.0,0.00025875,2]
[426908618,1783003840000,-1137.03976482,0.00026,2]
[426908622,1783003840000,-220.0,0.00026,2]
[426908619,1783003840000,-4619.42255365,0.00026,2]
[426908615,1783003840000,-1500.0,0.000259,9]
[426908617,1783003840000,-174.0,0.00026,2]
[426908635,1783003840000,-172.55,0.00026427,2]
[426908634,1783003840000,-28083.93966186,0.000264,2]
[426908633,1783003840000,-191.258687,0.00026264,14]
[426908636,1783003840000,-220.83058827,0.00026455,30]
[426908626,1783003840000,-385.21107118,0.00026158,2]
[426908624,1783003840000,-686.0,0.00026006,5]
[426908625,1783003840000,-500.0,0.00026082,2]
[426908631,1783003840000,-304.10053206,0.00026158,2]
[426908663,1783003840000,-245.74097223,0.00026994,2]
[426908642,1783003840000,-75852.09836261,0.00026778,2]
[426908673,1783003840000,-160.0,0.00027048,2]
[426908711,1783003840000,-3793.15,0.00027397,10]
[426908713,1783003840000,-3160.96,0.00027397,10]
[426908712,1783003840000,-829.309219,0.00027397,2]
[426908704,1783003840000,-300.0,0.00027397,5]
[426908703,1783003840000,-665.0,0.00027397,5]
[426908705,1783003840000,-681.0,0.00027397,5]
[426908700,1783003840000,-662.0,0.00027397,5]
[426908702,1783003840000,-152.0,0.00027397,5]
[426908706,1783003840000,-161.030777,0.00027397,2]
[426908709,1783003840000,-161.030777,0.00027397,2]
[426908708,1783003840000,-161.030777,0.00027397,2]
[426908710,1783003840000,-4551.78,0.00027397,10]
[426908717,1783003840000,-1473.07431822,0.000274,2]
[426908714,1783003840000,-829.309219,0.00027397,2]
[426908720,1783003840000,-10458.28714796,0.00027456,2]
[426908716,1783003840000,-4921.50128443,0.000274,2]
[426908718,1783003840000,-176.8,0.000274,7]
[426908719,1783003840000,-2220.74,0.000274,7]
[426908715,1783003840000,-208.32559247,0.000274,2]
[426908724,1783003840000,-224.03841985,0.00027551,2]
[426908723,1783003840000,-444.4301909,0.00027551,2]
[426908721,1783003840000,-500.0,0.000275,7]
[426908722,1783003840000,-308.54704031,0.00027551,2]
[426908725,1783003840000,-243.68170956,0.00027551,2]
[426908727,1783003840000,-188.09745689,0.00027551,2]
[426908726,1783003840000,-423.26643945,0.00027551,2]
[426908667,1783003840000,-456.15079808,0.00026994,2]
[426908701,1783003840000,-151.0,0.00027397,5]
[426908699,1783003840000,-1500.0,0.00027397,2]
[426908707,1783003840000,-161.030777,0.00027397,2]
[426908697,1783003840000,-500.0,0.00027397,15]
[426908665,1783003840000,-244.29786298,0.00026994,2]
[426908691,1783003840000,-153.0,0.00027343,5]
[426908672,1783003840000,-150.09,0.00027,7]
[426908671,1783003840000,-220.0,0.00027,2]
[426908666,1783003840000,-545.47985462,0.00026994,2]
[426908670,1783003840000,-174.0,0.00027,2]
[426908685,1783003840000,-225.53895044,0.00027209,2]
[426908674,1783003840000,-216.69616408,0.00027097,2]
[426908686,1783003840000,-500.0,0.00027209,2]
[426908678,1783003840000,-166.76895015,0.000271,2]
[426908676,1783003840000,-208.32559247,0.000271,2]
[426908679,1783003840000,-1473.07431822,0.000271,2]
[426908684,1783003840000,-4678.84,0.00027209,2]
[426908677,1783003840000,-4921.50128443,0.000271,2]
[426908675,1783003840000,-160.0,0.00027097,2]
[426908680,1783003840000,-823.42,0.00027106,2]
[426908694,1783003840000,-686.0,0.0002736,5]
[426908681,1783003840000,-654.1641,0.00027109,2]
[426908690,1783003840000,-674.0,0.00027338,5]
[426908696,1783003840000,-685.0,0.00027388,5]
[426908692,1783003840000,-686.0,0.00027344,5]
[426908695,1783003840000,-666.0,0.00027371,5]
[426908693,1783003840000,-673.0,0.00027351,5]
[426908698,1783003840000,-156.57,0.00027397,7]
[426908687,1783003840000,-154.05359121,0.00027297,9]
[426908688,1783003840000,-151.0,0.00027314,5]
[426908682,1783003840000,-508.0,0.00027137,2]
[426908683,1783003840000,-508.0,0.00027137,2]
[426908689,1783003840000,-684.0,0.00027329,5]
[426908767,1783003841000,-5000.0,0.00027855,7]
[426908774,1783003841000,-672.0,0.00027976,5]
[426908770,1783003841000,-4921.50128443,0.000279,2]
[426908768,1783003841000,-667.0,0.00027869,5]
[426908775,1783003841000,-2500.0,0.00028,2]
[426908765,1783003841000,-823.42,0.00027737,2]
[426908762,1783003841000,-208.32559247,0.000276,2]
[426908758,1783003841000,-178.32338398,0.00027551,2]
[426908756,1783003841000,-608.20106411,0.00027551,2]
[426908754,1783003841000,-167.94611917,0.00027551,2]
[426908766,1783003841000,-1567.49453884,0.00027843,2]
[426908764,1783003841000,-1473.07431822,0.000276,2]
[426908771,1783003841000,-1473.07431822,0.000279,2]
[426908787,1783003841000,-963.02767794,0.00028108,2]
[426908772,1783003841000,-151.0,0.00027902,5]
[426908773,1783003841000,-680.0,0.00027912,5]
[426908782,1783003841000,-22500.0,0.00028,2]
[426908777,1783003841000,-390.93,0.00028,2]
[426908783,1783003841000,-220.0,0.00028,2]
[426908780,1783003841000,-441.43221772,0.00028,60]
[426908781,1783003841000,-643.0,0.00028,2]
[426908779,1783003841000,-10148.80963007,0.00028,5]
[426908778,1783003841000,-390.93,0.00028,2]
[426908788,1783003841000,-909.13309103,0.00028108,2]
[426908789,1783003841000,-760.25133014,0.00028108,2]
[426908786,1783003841000,-681.0,0.00028074,5]
[426908759,1783003841000,-198.08109889,0.00027551,2]
[426908769,1783003841000,-1000.0,0.00027899,2]
[426908755,1783003841000,-727.30647282,0.00027551,2]
[426908731,1783003841000,-218.66398581,0.00027551,2]
[426908760,1783003841000,-411.31005161,0.00027551,2]
[426908785,1783003841000,-519.0,0.00028039,2]
[426908738,1783003841000,-165.9380636,0.00027551,2]
[426908732,1783003841000,-770.42214235,0.00027551,2]
[426908729,1783003841000,-335.89223833,0.00027551,2]
[426908735,1783003841000,-709.3073348,0.00027551,2]